{"text_format":"1","workbook":"xlsx","n_sheets":11,"sheets":["O-ADS","O. Dual","O. Expos","O. Extemp","O-Impromptu","O-Mem Hum","O-Mem Ser","O-Oratory","O-Poetry","O-Prose","O-Radio"],"not_rendered":{"charts":0,"images":0,"macros":0,"external_links":0,"defined_names":0,"comments":0,"pivot_tables":0},"unopened":[],"bounds":{"document_bytes":16777216,"sheet_cells":100000,"rows_first":2000,"rows_last":500,"rows_between":2000,"halvings":0,"cell_chars":16384,"cell_head_chars":4096},"cells_cut":0,"cells_raw":0,"read":"whole","date_system":"1900"}

{"sheet":"O-ADS","index":0,"n_rows":13,"n_cols":12,"rows_kept":13,"cut":false,"hidden":false,"merged":[[0,7,0,9]]}
["School","Name","Code","Rd. 1","Rd. 2","Rd. 3","Total","Finals",null,null,"Total","Place"]
["Wilson HS","Benedicte Hamilton","DD2",1,1,1,3,2,3,2,{"$f":"SUM(H2:J2)","v":7},"3rd"]
["West Linn HS","Joe Erickson","AA5",2,3,1,{"$f":"SUM(D3:F3)","v":6},3,1,1,5,"1st"]
["Century HS","Hunter Buen","D5",3,2,2,7,4,4,4,12,"F"]
["Willamette HS","Jarom Jenkins","CC4",1,3,3,7,1,2,3,6,"2nd"]
["Glencoe High","Nidhi Pai","H15",3,2,3,8,null,null,null,0]
["Sprague HS","Jonah Calhoun","U15",2,4,2,8,null,null,null,0]
["Westview HS","Vaishna Gubba","BB19",4,1,4,9,null,null,null,0]
["Lincoln HS","Oliver Risch","O9",4,4,4,12,null,null,null,0]
[null,null,null,null,null,null,{"$f":"SUM(D10:F10)","v":0},null,null,null,0]
[null,null,null,null,null,null,0,null,null,null,0]
[null,null,null,null,null,null,0,null,null,null,0]
[null,null,null,null,null,null,0,null,null,null,0]

{"sheet":"O. Dual","index":1,"n_rows":11,"n_cols":12,"rows_kept":11,"cut":false,"hidden":false,"merged":[[0,7,0,9]]}
["School","Name","Code","Rd. 1","Rd. 2","Rd. 3","Total","Finals",null,null,"Total","Place"]
["McMinnville HS","Bethany Mort & Austin Ewing","P1",2,1,2,{"$f":"SUM(D2:F2)","v":5},null,null,null,{"$f":"SUM(H2:J2)","v":0},"1st"]
["McMinnville HS","Kaitlin Gilbert & Erin Ramick","P7",3,2,1,{"$f":"SUM(D3:F3)","v":6},null,null,null,0,"2nd"]
["Sunset HS","Bianca Pak & Urvi Joshi","X3",1,4,5,{"$f":"SUM(D4:F4)","v":10},null,null,null,0,"3rd"]
["Nestucca HS","Marie Krueger & Maggie Mick","R10",4,3,4,{"$f":"SUM(D5:F5)","v":11},null,null,null,0]
["Westview HS","Divya Krishnagiri & Tarra Chen","BB20",5,5,3,13,null,null,null,0]
[null,null,null,null,null,null,{"$f":"SUM(D7:F7)","v":0},null,null,null,0]
[null,null,null,null,null,null,0,null,null,null,0]
[null,null,null,null,null,null,0,null,null,null,0]
[null,null,null,null,null,null,0,null,null,null,0]
[null,null,null,null,null,null,0,null,null,null,0]

{"sheet":"O. Expos","index":2,"n_rows":17,"n_cols":12,"rows_kept":17,"cut":false,"hidden":false,"merged":[[0,7,0,9]]}
["School","Name","Code","Rd. 1","Rd. 2","Rd. 3","Total","Finals",null,null,"Total","Place"]
["Westview HS","Mahita Tovinkere","BB10",1,1,2,{"$f":"SUM(D2:F2)","v":4},null,null,null,{"$f":"SUM(H2:J2)","v":0},"1st"]
["Centennial HS","Grace Ramstad","C4",2,2,1,5,null,null,null,0,"2nd"]
["Westview HS","Ifrah Javed","BB8",3,3,3,9,null,null,null,0,"3rd"]
["Wilson HS","Ashlynne Olsen","DD1",5,4,4,13,null,null,null,0]
["Nestucca HS","Andrea Polivka","R1",4,5,5,14,null,null,null,0]
["Willamette HS","Morgan Munger","CC12",6,6,6,18,null,null,null,0]
[null,null,null,null,null,null,{"$f":"SUM(D8:F8)","v":0},null,null,null,0]
[null,null,null,null,null,null,0,null,null,null,0]
[null,null,null,null,null,null,0,null,null,null,0]
[null,null,null,null,null,null,0,null,null,null,0]
[null,null,null,null,null,null,0,null,null,null,0]
[null,null,null,null,null,null,0,null,null,null,0]
[null,null,null,null,null,null,0,null,null,null,0]
[null,null,null,null,null,null,0,null,null,null,0]
[null,null,null,null,null,null,0,null,null,null,0]
[null,null,null,null,null,null,0,null,null,null,0]

{"sheet":"O. Extemp","index":3,"n_rows":32,"n_cols":12,"rows_kept":32,"cut":false,"hidden":false,"merged":[[0,7,0,9]]}
["School","Name","Code","Rd. 1","Rd. 2","Rd. 3","Total","Finals",null,null,"Total","Place"]
["Westview HS","Suyash Sharma","BB18",1,2,1,{"$f":"SUM(D2:F2)","v":4},3,3,1,{"$f":"SUM(H2:J2)","v":7},"3RD"]
["Glencoe HS","Ashwin Datta","H3",2,2,2,6,1,2,3,6,"2ND"]
["West Linn HS","Hunter Bosson","AA3",1,1,4,6,2,1,2,5,"1ST"]
["Glencoe HS","Anisha Datta","H2",2,3,3,8,4,4,4,12,"F"]
["Glencoe HS","Lorena Colcer","H9",3,3,3,9,null,null,null,0]
["Lincoln HS","Adam Selker","O1",3,4,2,9,null,null,null,0]
["Centennial HS","Brandon Czel","C1",4,1,5,10,null,null,null,0]
["Westview HS","Priyansh Sharma","BB13",5,5,1,11,null,null,null,0]
["Westview HS","Akshat Nema","BB1",4,4,5,13,null,null,null,0]
["Westview HS","Suchith Otturu","BB17",5,5,4,14,null,null,null,0]
[null,null,null,null,null,null,{"$f":"SUM(D12:F12)","v":0},null,null,null,0]
[null,null,null,null,null,null,0,null,null,null,0]
[null,null,null,null,null,null,0,null,null,null,0]
[null,null,null,null,null,null,0,null,null,null,0]
[null,null,null,null,null,null,0,null,null,null,0]
[null,null,null,null,null,null,0,null,null,null,0]
[null,null,null,null,null,null,0,null,null,null,0]
[null,null,null,null,null,null,0,null,null,null,0]
[null,null,null,null,null,null,0,null,null,null,0]
[null,null,null,null,null,null,0,null,null,null,0]
[null,null,null,null,null,null,0,null,null,null,0]
[null,null,null,null,null,null,0,null,null,null,0]
[null,null,null,null,null,null,0,null,null,null,0]
[null,null,null,null,null,null,0,null,null,null,0]
[null,null,null,null,null,null,0,null,null,null,0]
[null,null,null,null,null,null,0,null,null,null,0]
[null,null,null,null,null,null,0,null,null,null,0]
[null,null,null,null,null,null,0,null,null,null,0]
[null,null,null,null,null,null,0,null,null,null,0]
[null,null,null,null,null,null,0,null,null,null,0]
[null,null,null,null,null,null,0,null,null,null,0]

{"sheet":"O-Impromptu","index":4,"n_rows":45,"n_cols":12,"rows_kept":45,"cut":false,"hidden":false,"merged":[[0,7,0,9]]}
["School","Name","Code","Rd. 1","Rd. 2","Rd. 3","Total","Finals",null,null,"Total","Place"]
["Glencoe HS","Anisha Datta","H2",1,2,1,{"$f":"SUM(D2:F2)","v":4},2,5,6,{"$f":"SUM(H2:J2)","v":13},"F"]
["Hood River Valley","Dakota Bickle","J1",1,2,2,5,1,3,1,5,"1ST"]
["Hood River Valley","Darrian Thomas","J2",2,1,2,5,3,2,5,10,"3RD"]
["Lincoln HS","Adam Selker","O1",2,3,2,7,7,7,2,16,"F"]
["Sprague HS","Brandon Roth","U6",2,1,4,7,5,1,3,9,"2ND"]
["Westview HS","Bryan Lee","BB5",3,2,2,7,4,4,7,15,"F"]
["Westview HS","Suyash Sharma","BB18",5,1,1,7,6,6,4,16,"F"]
["Sunset HS","Ashwin Bhat","X2",2,2.5,3,7.5,null,null,null,0]
["Glencoe HS","Ryan Barger","H16",1,6,1,8,null,null,null,0]
["Aloha HS","Gabriella Garcia","A1",4,4,1,9,null,null,null,0]
["Century HS","Michael Brusseau","D9",3,3,3,9,null,null,null,0]
["Westview HS","Sahana Kumaran","BB15",1,4,4,9,null,null,null,0]
["Glencoe HS","Shirley Araiza","H18",3,4,3,10,null,null,null,0]
["Westview HS","Akshat Nema","BB1",5,1,4,10,null,null,null,0]
["Aloha HS","Justin Tran","A3",6,2,3,11,null,null,null,0]
["Centennial HS","Brandon Czel","C1",4,3,4,11,null,null,null,0]
["Sprague HS","Andrew Huynh","U2",4,4,5,13,null,null,null,0]
["Beaverton HS","Laila Mottaghi","B3",4,5,5,14,null,null,null,0]
["Hood River Valley","Lucas Campos","J6",5,3,6,14,null,null,null,0]
["Glencoe HS","Maddi James","H10",5,5,5,15,null,null,null,0]
["Glencoe HS","Maren Frohlick","H12",3,7,6,16,null,null,null,0]
["Willamette HS","Jared Roe","CC3",7,5,5,17,null,null,null,0]
["Glencoe HS","Scott Lyman","H17",6,8,6,20,null,null,null,0]
["Willamette HS","Mason Peckels","CC11",7,6,7,20,null,null,null,0]
[null,null,null,null,null,null,{"$f":"SUM(D26:F26)","v":0},null,null,null,{"$f":"SUM(H26:J26)","v":0}]
[null,null,null,null,null,null,0,null,null,null,0]
[null,null,null,null,null,null,0,null,null,null,0]
[null,null,null,null,null,null,0,null,null,null,0]
[null,null,null,null,null,null,0,null,null,null,0]
[null,null,null,null,null,null,0,null,null,null,0]
[null,null,null,null,null,null,0,null,null,null,0]
[null,null,null,null,null,null,0,null,null,null,0]
[null,null,null,null,null,null,0,null,null,null,0]
[null,null,null,null,null,null,0,null,null,null,0]
[null,null,null,null,null,null,0,null,null,null,0]
[null,null,null,null,null,null,0,null,null,null,0]
[null,null,null,null,null,null,0,null,null,null,0]
[null,null,null,null,null,null,0,null,null,null,0]
[null,null,null,null,null,null,0,null,null,null,0]
[null,null,null,null,null,null,0,null,null,null,0]
[null,null,null,null,null,null,0,null,null,null,0]
[null,null,null,null,null,null,0,null,null,null,0]
[null,null,null,null,null,null,0,null,null,null,0]
[null,null,null,null,null,null,0,null,null,null,0]

{"sheet":"O-Mem Hum","index":5,"n_rows":47,"n_cols":12,"rows_kept":47,"cut":false,"hidden":false,"merged":[[0,7,0,9]]}
["School","Name","Code","Rd. 1","Rd. 2","Rd. 3","Total","Finals",null,null,"Total","Place"]
["McMinnville HS","Taylor Burbee","P9",1,2,1,{"$f":"SUM(D2:F2)","v":4},null,null,null,{"$f":"SUM(H2:J2)","v":0},"1st"]
["Sprague HS","Johah Calhoun","U15",2,1,2,5,null,null,null,{"$f":"SUM(H3:J3)","v":0},"2nd"]
["Glencoe HS","Maricella Magdelano","H13",1,2,3,6,null,null,null,0,"3rd"]
["Sprague HS","Jake Ruger","U14",2,1,4,7,null,null,null,{"$f":"SUM(H5:J5)","v":0}]
["Horizon Christian","Dhora DaLaz","K2",3,3,5,11,null,null,null,0]
["Nestucca HS","Kat Sutton","R8",3,3,6,12,null,null,null,0]
[null,null,null,null,null,null,{"$f":"SUM(D8:F8)","v":0},null,null,null,0]
[null,null,null,null,null,null,0,null,null,null,0]
[null,null,null,null,null,null,0,null,null,null,0]
[null,null,null,null,null,null,10,null,null,null,0]
[null,null,null,null,null,null,{"$f":"SUM(D12:F12)","v":0},null,null,null,0]
[null,null,null,null,null,null,0,null,null,null,0]
[null,null,null,null,null,null,0,null,null,null,0]
[null,null,null,null,null,null,0,null,null,null,0]
[null,null,null,null,null,null,0,null,null,null,0]
[null,null,null,null,null,null,0,null,null,null,0]
[null,null,null,null,null,null,0,null,null,null,0]
[null,null,null,null,null,null,0,null,null,null,0]
[null,null,null,null,null,null,0,null,null,null,0]
[null,null,null,null,null,null,0,null,null,null,0]
[null,null,null,null,null,null,0,null,null,null,0]
[null,null,null,null,null,null,0,null,null,null,0]
[null,null,null,null,null,null,0,null,null,null,0]
[null,null,null,null,null,null,0,null,null,null,0]
[null,null,null,null,null,null,0,null,null,null,0]
[null,null,null,null,null,null,0,null,null,null,0]
[null,null,null,null,null,null,0,null,null,null,0]
[null,null,null,null,null,null,0,null,null,null,0]
[null,null,null,null,null,null,0,null,null,null,0]
[null,null,null,null,null,null,0,null,null,null,0]
[null,null,null,null,null,null,0,null,null,null,0]
[null,null,null,null,null,null,0,null,null,null,0]
[null,null,null,null,null,null,0,null,null,null,0]
[null,null,null,null,null,null,0,null,null,null,0]
[null,null,null,null,null,null,0,null,null,null,0]
[null,null,null,null,null,null,0,null,null,null,0]
[null,null,null,null,null,null,0,null,null,null,0]
[null,null,null,null,null,null,0,null,null,null,0]
[null,null,null,null,null,null,0,null,null,null,0]
[null,null,null,null,null,null,0,null,null,null,0]
[null,null,null,null,null,null,0,null,null,null,0]
[null,null,null,null,null,null,0,null,null,null,0]
[null,null,null,null,null,null,0,null,null,null,0]
[null,null,null,null,null,null,0,null,null,null,0]
[null,null,null,null,null,null,0,null,null,null,0]
[null,null,null,null,null,null,15,null,null,null,0]

{"sheet":"O-Mem Ser","index":6,"n_rows":42,"n_cols":14,"rows_kept":42,"cut":false,"hidden":false,"merged":[[0,7,0,9]]}
["School","Name","Code","Rd. 1","Rd. 2","Rd. 3","Total","Finals",null,null,"Total","Place"]
["McMinnville HS","Austin Ewing","P1",1,2,1,{"$f":"SUM(D2:F2)","v":4},2,1,3,{"$f":"SUM(H2:J2)","v":6},"2nd"]
["McMinnville HS","Taylor Burbee","P9",1,3,1,5,4,4,1,9,"F"]
["McMinnville HS","Bethany Mort","P2",2,1,3,6,1,3,2,6,"1st",null,"JP"]
["West Linn HS","Kayla Gadd","AA6",3,1,2,6,3,2,4,9,"3rd",null,"JP"]
["Nestucca HS","Maggie Mick","R10",3,2,3,8,null,null,null,0]
["Hood River Valley","Gabriella Whitehead","J4",4,3,2,9,null,null,null,0]
["McMinnville HS","Kaitlin Gilbert","P7",2,5,4,11,null,null,null,0]
["Centennial HS","Sydney Soto","C9",4,4,4,12,null,null,null,0]
["Centennial HS","Madeline Sanstrum","C6",5,4,5,14,null,null,null,0]
[null,null,null,null,null,null,{"$f":"SUM(D11:F11)","v":0},null,null,null,0]
[null,null,null,null,null,null,0,null,null,null,0]
[null,null,null,null,null,null,0,null,null,null,0]
[null,null,null,null,null,null,0,null,null,null,0]
[null,null,null,null,null,null,0,null,null,null,0]
[null,null,null,null,null,null,0,null,null,null,0]
[null,null,null,null,null,null,0,null,null,null,0]
[null,null,null,null,null,null,0,null,null,null,0]
[null,null,null,null,null,null,0,null,null,null,0]
[null,null,null,null,null,null,0,null,null,null,0]
[null,null,null,null,null,null,0,null,null,null,0]
[null,null,null,null,null,null,0,null,null,null,0]
[null,null,null,null,null,null,0,null,null,null,0]
[null,null,null,null,null,null,0,null,null,null,0]
[null,null,null,null,null,null,0,null,null,null,0]
[null,null,null,null,null,null,0,null,null,null,0]
[null,null,null,null,null,null,0,null,null,null,0]
[null,null,null,null,null,null,0,null,null,null,0]
[null,null,null,null,null,null,0,null,null,null,0]
[null,null,null,null,null,null,0,null,null,null,0]
[null,null,null,null,null,null,0,null,null,null,0]
[null,null,null,null,null,null,0,null,null,null,0]
[null,null,null,null,null,null,0,null,null,null,0]
[null,null,null,null,null,null,0,null,null,null,0]
[null,null,null,null,null,null,0,null,null,null,0]
[null,null,null,null,null,null,0,null,null,null,0]
[null,null,null,null,null,null,0,null,null,null,0]
[null,null,null,null,null,null,0,null,null,null,0]
[null,null,null,null,null,null,0,null,null,null,0]
[null,null,null,null,null,null,0,null,null,null,0]
[null,null,null,null,null,null,0,null,null,null,0]
[null,null,null,null,null,null,0,null,null,null,0]

{"sheet":"O-Oratory","index":7,"n_rows":45,"n_cols":12,"rows_kept":45,"cut":false,"hidden":false,"merged":[[0,7,0,9]]}
["School","Name","Code","Rd. 1","Rd. 2","Rd. 3","Total","Finals",null,null,"Total","Place"]
["Forest Grove HS","Alli Davis","G1",2,3,2,{"$f":"SUM(D2:F2)","v":7},null,null,null,{"$f":"SUM(H2:J2)","v":0},"2nd"]
["Hood River Valley","Talon Kennedy","J9",6,6,4,16,null,null,null,0]
["Sherwood HS","Brian Smith","S1",5,5,5,15,null,null,null,0]
["Sprague HS","Aujalee Fisher","U4",1,1,1,3,null,null,null,0,"1st"]
["Westview HS","Bhavin Gupta","BB4",4,2,3,9,null,null,null,0,"3rd"]
["Willamette HS","Emily Randleman","CC1",3,4,6,13,null,null,null,0]
[null,null,null,null,null,null,0,null,null,null,0]
[null,null,null,null,null,null,0,null,null,null,0]
[null,null,null,null,null,null,0,null,null,null,0]
[null,null,null,null,null,null,0,null,null,null,0]
[null,null,null,null,null,null,0,null,null,null,0]
[null,null,null,null,null,null,0,null,null,null,0]
[null,null,null,null,null,null,0,null,null,null,0,"F"]
[null,null,null,null,null,null,0,null,null,null,0]
[null,null,null,null,null,null,0,null,null,null,0]
[null,null,null,null,null,null,0,null,null,null,0]
[null,null,null,null,null,null,0,null,null,null,0]
[null,null,null,null,null,null,0,null,null,null,0]
[null,null,null,null,null,null,0,null,null,null,0]
[null,null,null,null,null,null,0,null,null,null,0]
[null,null,null,null,null,null,0,null,null,null,0]
[null,null,null,null,null,null,0,null,null,null,0]
[null,null,null,null,null,null,0,null,null,null,0]
[null,null,null,null,null,null,0,null,null,null,0]
[null,null,null,null,null,null,0,null,null,null,0]
[null,null,null,null,null,null,0,null,null,null,0]
[null,null,null,null,null,null,0,null,null,null,0]
[null,null,null,null,null,null,0,null,null,null,0]
[null,null,null,null,null,null,0,null,null,null,0]
[null,null,null,null,null,null,0,null,null,null,0]
[null,null,null,null,null,null,0,null,null,null,0]
[null,null,null,null,null,null,0,null,null,null,0]
[null,null,null,null,null,null,0,null,null,null,0]
[null,null,null,null,null,null,0,null,null,null,0]
[null,null,null,null,null,null,0,null,null,null,0]
[null,null,null,null,null,null,0,null,null,null,0]
[null,null,null,null,null,null,0,null,null,null,0]
[null,null,null,null,null,null,0,null,null,null,0]
[null,null,null,null,null,null,0,null,null,null,0]
[null,null,null,null,null,null,0,null,null,null,0]
[null,null,null,null,null,null,0,null,null,null,0]
[null,null,null,null,null,null,0,null,null,null,0]
[null,null,null,null,null,null,0,null,null,null,0]
[null,null,null,null,null,null,0,null,null,null,0]

{"sheet":"O-Poetry","index":8,"n_rows":29,"n_cols":14,"rows_kept":29,"cut":false,"hidden":false,"merged":[[0,7,0,9]]}
["School","Name","Code","Rd. 1","Rd. 2","Rd. 3","Total","Finals",null,null,"Total","Place"]
["Willamette HS","Emily Randleman","CC1",1,1,1,{"$f":"SUM(D2:F2)","v":3},4,5,5,{"$f":"SUM(H2:J2)","v":14},"F"]
["South Albany HS","Marqueasha Rhodes","T6",1,1,2,{"$f":"SUM(D3:F3)","v":4},2,1,1,4,"1st"]
["Willamette HS","Sarai Morales","CC13",1,1,2,4,5,3,3,11,"3rd",null,"JP"]
["Clackamas HS","Vikki Bachinsky","E7",2,2,1,{"$f":"SUM(D5:F5)","v":5},3,4,4,11,"F"]
["Sprague HS","Chris Silver","U7",1,5,1,7,1,2,2,5,"2nd"]
["Centennial HS","Veronica Jeronimo","C10",2,4,2,8,null,null,null,0]
["Glencoe HS","Kailee Lionberger","H7",2,2,4,8,null,null,null,0]
["Hood River Valley","Talon Kennedy","J9",4,2,2,8,null,null,null,0]
["Lincoln HS","Kelsey Dunn","O8",2,3,3,8,null,null,null,0]
["Willamette HS","Jesse Gerlach","CC5",1,5,2,8,null,null,null,0]
["Aloha HS","Logan McKim","A4",6,2,1,9,null,null,null,0]
["Lincoln HS","Allison Kurtz","O2",3,3,3,9,null,null,null,0]
["Lincoln HS","Siri Rosenberg","O10",2,3,4,9,null,null,null,0]
["Willamette HS","Logan Monroe","CC9",5,1,3,9,null,null,null,0]
["Centennial HS","Madeline Sanstrum","C6",3,3,4,10,null,null,null,0]
["Centennial HS","Winter Burris","C11",4,1,5,10,null,null,null,0]
["Lincoln HS","Emily Ma","O4",3,2,5,10,null,null,null,0]
["Lincoln HS","Karen Shore","O7",3,3,4,10,null,null,null,0]
["South Albany HS","Aaron Windish","T1",5,4,1,10,null,null,null,0]
["Century HS","Nathan Nakonieczny","D10",4,2,5,11,null,null,null,0]
["Nestucca HS","Jillian Wilkinson","R7",5,4,3,12,null,null,null,0]
["Willamette HS","Lindsey Gray","CC8",5,4,3,12,null,null,null,0]
["Glencoe HS","Becca Collins","H4",3,5,5,13,null,null,null,0]
["Sprague HS","Freya Ruehr","U13",4,5,4,13,null,null,null,0]
[null,null,null,null,null,null,{"$f":"SUM(D26:F26)","v":0},null,null,null,0]
[null,null,null,null,null,null,0,null,null,null,0]
[null,null,null,null,null,null,0,null,null,null,0]
[null,null,null,null,null,null,0,null,null,null,0]

{"sheet":"O-Prose","index":9,"n_rows":28,"n_cols":13,"rows_kept":28,"cut":false,"hidden":false,"merged":[[0,7,0,9]]}
["School","Name","Code","Rd. 1","Rd. 2","Rd. 3","Total","Finals",null,null,"Total","Place"]
["South Albany HS","Victoria Garcia","T10",1,1,2,{"$f":"SUM(D2:F2)","v":4},1,1,5,{"$f":"SUM(H2:J2)","v":7},"1ST",2.5]
["Glencoe HS","Haley Inman","H6",2,2,1,{"$f":"SUM(D3:F3)","v":5},5,5,6,16,"F"]
["Nestucca HS","Nicole Bishop","R13",1,1,3,{"$f":"SUM(D4:F4)","v":5},4,6,3,13,"F"]
["Wilson HS","Eli Morgan-Steiner","DD4",1,3,1,5,6,3,4,13,"F"]
["Sprague HS","Alexis Reynolds","U1",4,1,1,{"$f":"SUM(D6:F6)","v":6},3,2,2,7,"3RD",1.33]
["Beaverton HS","Laila Mottaghi","B3",5,1,1,7,2,4,1,7,"2ND",1.75]
["Aloha HS","Noosheen Hossein","A6",4,2,3,9,null,null,null,0]
["Centennial HS","Grace Ramstad","C4",3,4,2,9,null,null,null,0]
["Hood River Valley","Elise Back","J3",1,5,3,9,null,null,null,0]
["Nestucca HS","Sandra Hoyt","R15",2,3,4,9,null,null,null,0]
["South Albany HS","Jordan Rogers","T3",1,6,2,9,null,null,null,0]
["Wilson HS","Ashlynne Olsen","DD1",3,4,2,9,null,null,null,0]
["Aloha HS","Gabriella Garcia","A1",2,2,6,10,null,null,null,0]
["Centennial HS","Cami Kaylor","C2",3,3,4,10,null,null,null,0]
["Nestucca HS","Tiarra Thompson","R17",5,2,4,11,null,null,null,0]
["Centennial HS","Mykel Caruso","C8",4,4,4,12,null,null,null,0]
["Clackamas HS","Whitney Wells","E11",2,5,5,12,null,null,null,0]
["Aloha HS","Justin Tran","A3",4,6,3,13,null,null,null,0]
["Lincoln HS","Allison Kurtz","O2",3,5,6,14,null,null,null,0]
["Westview HS","Nikhil Mishra","BB12",5,4,5,14,null,null,null,0]
["Wilson HS","Benedicte Hamilton","DD2",6,3,5,14,null,null,null,0]
["South Albany HS","Mariah Campbell","T5",2,6,7,15,null,null,null,0]
["Glencoe HS","Maddi James","H10",5,5,6,16,null,null,null,{"$f":"SUM(H24:J24)","v":0}]
["Lincoln HS","Kelsey Dunn","O8",3,6,7,16,null,null,null,0]
["South Albany HS","Natalea Blake","T7",5,7,5,17,null,null,null,0]
["Nestucca HS","Jackie Wilkinson","R6",4,8,8,20]
["Willamette HS","Mason Peckels","CC11",6,7,7,20,null,null,null,0]

{"sheet":"O-Radio","index":10,"n_rows":42,"n_cols":14,"rows_kept":42,"cut":false,"hidden":false,"merged":[[0,7,0,9]]}
["School","Name","Code","Rd. 1","Rd. 2","Rd. 3","Total","Finals",null,null,"Total","Place"]
["Aloha HS","Nargiz Mitalipov","A5",3,1,1,{"$f":"SUM(D2:F2)","v":5},2,5,4,{"$f":"SUM(H2:J2)","v":11},"F","*"]
["Century HS","Andrew Finley","D1",4,5,6,15,null,null,null,0]
["Century HS","Brad Thompson","D2",5,7,4,16,null,null,null,0]
["Century HS","Christopher O'Brien","D3",4,3,3,10,null,null,null,0]
["Century HS","Jake White","D6",6,4,4,14,null,null,null,0]
["Century HS","Kelsey Bruce","D7",3,7,4,14,null,null,null,0]
["Glencoe HS","Becca Collins","H4",4,2,7,13,null,null,null,0]
["Glencoe HS","Emily Smith","H5",1,2,1,4,5,2,3,10,"3rd","*","JP"]
["Glencoe HS","Kailee Lionberger","H7",3,2,6,11,null,null,null,0]
["Glencoe HS","Maren Frohlick","H12",5,7,5,17,null,null,null,0]
["Glencoe HS","Nathalia Soltile","H14",3,4,2,9,null,null,null,0]
["Glencoe HS","Nidhi Pai","H15",3,5,6,14,null,null,null,0]
["Glencoe HS","Shirley Araiza","H18",5,6,3,14,null,null,null,0]
["Lakeridge HS","Allie Horn","M1",5,7,2,14,null,null,null,{"$f":"SUM(H15:J15)","v":0}]
["Lincoln HS","Emily Ma","O4",2,3,5,10,null,null,null,0]
["Lincoln HS","Karen Shore","O7",4,2,1,7,null,null,null,0]
["McMinnville HS","Levi Polasek","P8",6,6,4,16,null,null,null,0]
["Nestucca HS","Chelsea Wallace","R2",2,7,5,14,null,null,null,0]
["Nestucca HS","Darren Hoyt","R4",4,7,6,17,null,null,null,0]
["Nestucca HS","Isaac Welch","R5",1,1,5,7,null,null,null,0]
["Nestucca HS","Liam Hill","R9",6,3,5,14,null,null,null,0]
["Sprague HS","Andrew Huyhn","U2",4,6,3,13,null,null,null,0]
["Century HS","Gena Tkachuk","D4",4,6,2,12,null,null,null,0]
["Sprague HS","Freya Ruehr","U13",5,7,4,16,null,null,null,0]
["Sunset HS","Aria Reusser","X1",6,3,6,15,null,null,null,0]
["Sunset HS","Prem Sakala","X5",3,4,6,13,null,null,null,0]
["Sunset HS","Ritwiki Petluri","X6",5,4,1,10,null,null,null,0]
["Sunset HS","Sruthi Eapen","X9",5,1,2,8,null,null,null,0]
["West Linn HS","Eric Dale","AA2",1,1,3,5,4,4,1,9,"2nd","*"]
["West Linn HS","Jennifer Jain","AA4",2,2,7,11,null,null,null,0]
["Westview HS","Akshay Pulavarty","BB2",1,3,3,7,null,null,null,0]
["Westview HS","Ifrah Javed","BB8",2,1,4,7,null,null,null,0]
["Westview HS","Mahita Tovinkere","BB10",1,5,1,7,null,null,null,0]
["Westview HS","Rahul Chandwani","BB14",2,2,1,5,1,3,6,10,"F","*"]
["Westview HS","Sahana Kumaran","BB15",2,5,3,10,null,null,null,0]
["Westview HS","Stanley Sun","BB16",3,5,2,10,null,null,null,0]
["Westview HS","Vaishnav Gubba","BB19",2,4,7,13,null,null,null,0]
["Willamette HS","Garrett Nelson","CC2",6,7,7,20,null,null,null,0]
["Willamette HS","Jared Roe","CC3",7,6,5,18,null,null,null,0]
["Willamette HS","Sarai Morales","CC13",1,3,2,6,6,6,5,17,"F","*"]
["Wilson HS","Chris Meabe","DD3",1,1,4,6,3,1,2,6,"1st","*"]